fUSD/lending_fUSD_20260610
["ID","MTS","AMOUNT","RATE_DAILY","PERIOD"]
[424699889,1781063439000,-159.64219803,0.00013994,2]
[424699873,1781063439000,-886.9001187,0.00013699,2]
[424699884,1781063439000,-886.9001187,0.00013899,2]
[424699915,1781063439000,-150.0,0.00014204,2]
[424699860,1781063439000,-150.0,0.00013557,2]
[424699859,1781063439000,-150.0,0.00013557,2]
[424699862,1781063439000,-200.80092695,0.00013557,2]
[424699861,1781063439000,-253.61827038,0.00013557,2]
[424699872,1781063439000,-261.78568312,0.00013699,2]
[424699870,1781063439000,-200.0,0.00013699,2]
[424699866,1781063439000,-621.52924006,0.00013613,2]
[424699867,1781063439000,-150.0,0.00013618,2]
[424699868,1781063439000,-150.0,0.00013654,2]
[424699865,1781063439000,-166.66,0.00013601,2]
[424699863,1781063439000,-500.0,0.00013557,2]
[424699882,1781063439000,-621.52924006,0.0001387,2]
[424699864,1781063439000,-508.90687588,0.00013557,2]
[424699871,1781063439000,-500.0,0.00013699,2]
[424699874,1781063439000,-160.61,0.00013732,2]
[424699876,1781063439000,-150.0,0.00013748,2]
[424699877,1781063439000,-150.0,0.00013787,2]
[424699878,1781063439000,-150.0,0.00013813,2]
[424699879,1781063439000,-150.0,0.00013821,2]
[424699875,1781063439000,-150.0,0.00013737,2]
[424699880,1781063439000,-150.0,0.00013862,2]
[424699883,1781063439000,-150.0,0.00013879,2]
[424699881,1781063439000,-166.66,0.00013865,2]
[424699885,1781063439000,-675.72,0.00013926,2]
[424699886,1781063439000,-150.0,0.00013944,2]
[424699869,1781063439000,-150.0,0.00013683,2]
[424699924,1781063439000,-500.0,0.00014358,2]
[424699911,1781063439000,-621.52924006,0.00014128,2]
[424699913,1781063439000,-150.0,0.00014154,2]
[424699950,1781063439000,-150.0,0.00014726,2]
[424699951,1781063439000,-150.0,0.00014737,2]
[424699952,1781063439000,-2000.0,0.00014768,2]
[424699953,1781063439000,-1949.0,0.00014768,2]
[424699957,1781063439000,-1361.88324152,0.00014816,2]
[424699955,1781063439000,-200.0,0.0001479,2]
[424699954,1781063439000,-150.0,0.00014768,2]
[424699958,1781063439000,-2027.28542923,0.00014816,2]
[424699956,1781063439000,-150.0,0.00014791,2]
[424699959,1781063439000,-167.35662824,0.00014816,2]
[424699960,1781063439000,-150.0,0.0001482,2]
[424699965,1781063439000,-25000.0,0.00014838,3]
[424699966,1781063439000,-5800.0,0.00014841,2]
[424699967,1781063439000,-302.03939736,0.00014843,2]
[424699961,1781063439000,-172.73075392,0.00014828,2]
[424699969,1781063439000,-302.03939736,0.00014844,2]
[424699963,1781063439000,-5800.0,0.00014832,2]
[424699962,1781063439000,-172.73075392,0.00014828,2]
[424699964,1781063439000,-500.0,0.00014838,2]
[424699970,1781063439000,-25000.0,0.00014847,3]
[424699975,1781063439000,-2000.0,0.0001485,2]
[424699971,1781063439000,-5800.0,0.00014849,2]
[424699973,1781063439000,-2000.0,0.0001485,2]
[424699976,1781063439000,-2000.0,0.0001485,2]
[424699974,1781063439000,-2000.0,0.0001485,2]
[424699972,1781063439000,-104078.48932605,0.0001485,2]
[424699918,1781063439000,-150.0,0.0001427,2]
[424699949,1781063439000,-200.0,0.00014725,2]
[424699946,1781063439000,-350.0,0.00014681,2]
[424699968,1781063439000,-150.0,0.00014844,2]
[424699944,1781063439000,-150.0,0.00014653,2]
[424699945,1781063439000,-150.0,0.00014661,2]
[424699919,1781063439000,-261.78568312,0.00014299,2]
[424699916,1781063439000,-150.0,0.00014237,2]
[424699923,1781063439000,-150.0,0.00014335,2]
[424699921,1781063439000,-255.0,0.00014306,2]
[424699922,1781063439000,-150.0,0.0001432,2]
[424699934,1781063439000,-7336.31,0.00014504,2]
[424699928,1781063439000,-150.0,0.00014387,2]
[424699929,1781063439000,-150.0,0.000144,2]
[424699935,1781063439000,-9999.99,0.00014504,2]
[424699932,1781063439000,-150.0,0.00014487,2]
[424699927,1781063439000,-621.52924006,0.00014385,2]
[424699931,1781063439000,-150.0,0.00014487,2]
[424699925,1781063439000,-350.0,0.0001436,2]
[424699926,1781063439000,-2000.0,0.00014372,2]
[424699943,1781063439000,-1028.031621,0.00014651,2]
[424699977,1781063439000,-2000.0,0.0001485,2]
[424699942,1781063439000,-342.663873,0.00014651,2]
[424699941,1781063439000,-621.52924006,0.00014643,2]
[424699947,1781063439000,-150.0,0.00014687,2]
[424699937,1781063439000,-160.61,0.00014582,2]
[424699948,1781063439000,-886.9001187,0.000147,2]
[424699939,1781063439000,-261.78568312,0.000146,2]
[424699938,1781063439000,-150.0,0.00014595,2]
[424699936,1781063439000,-150.0,0.0001453,2]
[424699933,1781063439000,-886.9001187,0.000145,2]
[424699930,1781063439000,-150.0,0.00014465,2]
[424699940,1781063439000,-150.0,0.00014612,2]
[424700012,1781063440000,-22019.24284124,0.000149,3]
[424700014,1781063440000,-11548.0,0.000149,5]
[424700010,1781063440000,-5800.0,0.00014891,2]
[424700011,1781063440000,-157124.092278,0.00014898,2]
[424700013,1781063440000,-10000.0,0.000149,2]
[424700009,1781063440000,-25000.0,0.00014891,3]
[424700015,1781063440000,-1332.570097,0.000149,2]
[424700016,1781063440000,-25000.0,0.000149,3]
[424700023,1781063440000,-12945.14,0.000149,2]
[424700018,1781063440000,-261.78568312,0.000149,2]
[424700019,1781063440000,-12945.1,0.000149,2]
[424700020,1781063440000,-12945.1,0.000149,2]
[424700021,1781063440000,-12945.1,0.000149,2]
[424700022,1781063440000,-12945.1,0.000149,2]
[424700005,1781063440000,-163.0,0.0001488,2]
[424700024,1781063440000,-11333.0,0.000149,5]
[424700017,1781063440000,-5800.0,0.000149,2]
[424700008,1781063440000,-289.84973986,0.00014885,2]
[424699983,1781063440000,-1361.8832415,0.00014858,2]
[424700006,1781063440000,-25000.0,0.00014882,3]
[424700026,1781063440000,-159.64219803,0.000149,2]
[424699978,1781063440000,-2000.0,0.0001485,2]
[424699979,1781063440000,-200.0,0.00014854,2]
[424699981,1781063440000,-25000.0,0.00014856,3]
[424699980,1781063440000,-150.0,0.00014856,2]
[424699991,1781063440000,-5800.0,0.00014874,2]
[424699982,1781063440000,-5800.0,0.00014858,2]
[424699984,1781063440000,-2027.28542922,0.00014858,2]
[424699992,1781063440000,-200.0,0.00014879,2]
[424699986,1781063440000,-25000.0,0.00014865,3]
[424699985,1781063440000,-167.35662824,0.00014858,2]
[424699987,1781063440000,-5800.0,0.00014866,2]
[424699990,1781063440000,-25000.0,0.00014874,3]
[424699988,1781063440000,-200.0,0.00014867,2]
[424699989,1781063440000,-500.0,0.00014873,2]
[424700004,1781063440000,-166.0,0.0001488,2]
[424700003,1781063440000,-160.0,0.0001488,2]
[424700007,1781063440000,-5800.0,0.00014883,2]
[424700029,1781063440000,-2027.28542922,0.000149,2]
[424700031,1781063440000,-500.0,0.0001491,2]
[424700030,1781063440000,-167.35662824,0.000149,2]
[424700048,1781063440000,-251.46184803,0.00014975,10]
[424700047,1781063440000,-403.29840768,0.00014953,2]
[424700053,1781063440000,-178.23604891,0.00014986,2]
[424700061,1781063440000,-232.91439081,0.00014999,2]
[424700054,1781063440000,-8831.0,0.00014986,2]
[424700055,1781063440000,-190.96821533,0.00014986,2]
[424700062,1781063440000,-500.0,0.00014999,2]
[424700056,1781063440000,-184.89089988,0.00014986,2]
[424700060,1781063440000,-151.0,0.00014997,2]
[424700058,1781063440000,-390.08156014,0.0001499,2]
[424700057,1781063440000,-390.08156014,0.0001499,2]
[424700063,1781063440000,-500.0,0.00014999,2]
[424700064,1781063440000,-500.0,0.00014999,2]
[424700065,1781063440000,-500.0,0.00014999,2]
[424700067,1781063440000,-500.0,0.00014999,2]
[424700066,1781063440000,-500.0,0.00014999,2]
[424700027,1781063440000,-886.9001187,0.000149,2]
[424700051,1781063440000,-155.55734656,0.00014986,2]
[424700046,1781063440000,-150.0,0.00014921,2]
[424700059,1781063440000,-169.929416,0.00014997,2]
[424700050,1781063440000,-256.2242573,0.00014986,2]
[424700028,1781063440000,-1361.8832415,0.000149,2]
[424700052,1781063440000,-182.5276494,0.00014986,2]
[424700025,1781063440000,-621.52924006,0.000149,2]
[424700032,1781063440000,-500.0,0.00014915,2]
[424700033,1781063440000,-500.0,0.00014915,2]
[424700036,1781063440000,-500.0,0.00014915,2]
[424700040,1781063440000,-39733.0775054,0.00014916,2]
[424700039,1781063440000,-3358.8871575,0.00014916,2]
[424700034,1781063440000,-500.0,0.00014915,2]
[424700042,1781063440000,-481778.6517856,0.00014916,2]
[424700037,1781063440000,-302300.3175207,0.00014916,2]
[424700035,1781063440000,-500.0,0.00014915,2]
[424700041,1781063440000,-5163.4614455,0.00014916,2]
[424700043,1781063440000,-2881.5279527,0.00014916,2]
[424700044,1781063440000,-144044.2597425,0.00014916,2]
[424700038,1781063440000,-9086.9888859,0.00014916,2]
[424700045,1781063440000,-84220.8712505,0.00014916,2]
[424700049,1781063440000,-2000.0,0.00014984,2]
[424700107,1781063441000,-540.41034342,0.00014999,2]
[424700103,1781063441000,-500.0,0.00014999,2]
[424700102,1781063441000,-500.0,0.00014999,2]
[424700105,1781063441000,-430.97492751,0.00014999,2]
[424700104,1781063441000,-500.0,0.00014999,2]
[424700100,1781063441000,-500.0,0.00014999,2]
[424700099,1781063441000,-500.0,0.00014999,2]
[424700106,1781063441000,-500.0,0.00014999,2]
[424700096,1781063441000,-500.0,0.00014999,2]
[424700101,1781063441000,-500.0,0.00014999,2]
[424700108,1781063441000,-500.0,0.00014999,2]
[424700118,1781063441000,-500.0,0.00014999,2]
[424700112,1781063441000,-2000.0,0.00014999,2]
[424700110,1781063441000,-402.08865691,0.00014999,2]
[424700109,1781063441000,-500.0,0.00014999,2]
[424700114,1781063441000,-500.0,0.00014999,2]
[424700115,1781063441000,-500.0,0.00014999,2]
[424700113,1781063441000,-500.0,0.00014999,2]
[424700117,1781063441000,-500.0,0.00014999,2]
[424700119,1781063441000,-500.0,0.00014999,2]
[424700123,1781063441000,-500.0,0.00014999,2]
[424700116,1781063441000,-500.0,0.00014999,2]
[424700098,1781063441000,-500.0,0.00014999,2]
[424700111,1781063441000,-250.0,0.00014999,2]
[424700097,1781063441000,-500.0,0.00014999,2]
[424700073,1781063441000,-500.0,0.00014999,2]
[424700095,1781063441000,-500.0,0.00014999,2]
[424700071,1781063441000,-500.0,0.00014999,2]
[424700120,1781063441000,-500.0,0.00014999,2]
[424700072,1781063441000,-502.68633868,0.00014999,2]
[424700070,1781063441000,-500.0,0.00014999,2]
[424700068,1781063441000,-500.0,0.00014999,2]
[424700069,1781063441000,-500.0,0.00014999,2]
[424700076,1781063441000,-500.0,0.00014999,2]
[424700078,1781063441000,-500.0,0.00014999,2]
[424700079,1781063441000,-500.0,0.00014999,2]
[424700081,1781063441000,-627.23811312,0.00014999,2]
[424700080,1781063441000,-500.0,0.00014999,2]
[424700074,1781063441000,-500.0,0.00014999,2]
[424700082,1781063441000,-500.0,0.00014999,2]
[424700083,1781063441000,-500.0,0.00014999,2]
[424700085,1781063441000,-500.0,0.00014999,2]
[424700087,1781063441000,-500.0,0.00014999,2]
[424700086,1781063441000,-300.0,0.00014999,2]
[424700088,1781063441000,-500.0,0.00014999,2]
[424700089,1781063441000,-500.0,0.00014999,2]
[424700093,1781063441000,-500.0,0.00014999,2]
[424700092,1781063441000,-500.0,0.00014999,2]
[424700091,1781063441000,-500.0,0.00014999,2]
[424700094,1781063441000,-500.0,0.00014999,2]
[424700090,1781063441000,-500.0,0.00014999,2]
[424700121,1781063441000,-500.0,0.00014999,2]
[424700173,1781063441000,-500.0,0.00014999,2]
[424700124,1781063441000,-500.0,0.00014999,2]
[424700152,1781063441000,-500.0,0.00014999,2]
[424700153,1781063441000,-500.0,0.00014999,2]
[424700157,1781063441000,-500.0,0.00014999,2]
[424700159,1781063441000,-500.0,0.00014999,2]
[424700154,1781063441000,-500.0,0.00014999,2]
[424700158,1781063441000,-500.0,0.00014999,2]
[424700155,1781063441000,-500.0,0.00014999,2]
[424700156,1781063441000,-500.0,0.00014999,2]
[424700161,1781063441000,-500.0,0.00014999,2]
[424700163,1781063441000,-500.0,0.00014999,2]
[424700167,1781063441000,-500.0,0.00014999,2]
[424700162,1781063441000,-500.0,0.00014999,2]
[424700165,1781063441000,-500.0,0.00014999,2]
[424700170,1781063441000,-500.0,0.00014999,2]
[424700164,1781063441000,-500.0,0.00014999,2]
[424700168,1781063441000,-500.0,0.00014999,2]
[424700169,1781063441000,-500.0,0.00014999,2]
[424700166,1781063441000,-500.0,0.00014999,2]
[424700172,1781063441000,-500.0,0.00014999,2]
[424700171,1781063441000,-500.0,0.00014999,2]
[424700175,1781063441000,-500.0,0.00014999,2]
[424700174,1781063441000,-500.0,0.00014999,2]
[424700125,1781063441000,-500.0,0.00014999,2]
[424700149,1781063441000,-500.0,0.00014999,2]
[424700151,1781063441000,-500.0,0.00014999,2]
[424700160,1781063441000,-500.0,0.00014999,2]
[424700143,1781063441000,-500.0,0.00014999,2]
[424700150,1781063441000,-500.0,0.00014999,2]
[424700122,1781063441000,-500.0,0.00014999,2]
[424700127,1781063441000,-500.0,0.00014999,2]
[424700137,1781063441000,-500.0,0.00014999,2]
[424700128,1781063441000,-500.0,0.00014999,2]
[424700126,1781063441000,-500.0,0.00014999,2]
[424700136,1781063441000,-500.0,0.00014999,2]
[424700133,1781063441000,-500.0,0.00014999,2]
[424700130,1781063441000,-500.0,0.00014999,2]
[424700129,1781063441000,-500.0,0.00014999,2]
[424700135,1781063441000,-500.0,0.00014999,2]
[424700134,1781063441000,-500.0,0.00014999,2]
[424700131,1781063441000,-500.0,0.00014999,2]
[424700145,1781063441000,-500.0,0.00014999,2]
[424700138,1781063441000,-500.0,0.00014999,2]
[424700139,1781063441000,-500.0,0.00014999,2]
[424700140,1781063441000,-500.0,0.00014999,2]
[424700148,1781063441000,-500.0,0.00014999,2]
[424700142,1781063441000,-500.0,0.00014999,2]
[424700146,1781063441000,-500.0,0.00014999,2]
[424700144,1781063441000,-500.0,0.00014999,2]
[424700147,1781063441000,-500.0,0.00014999,2]
[424700141,1781063441000,-500.0,0.00014999,2]
[424700132,1781063441000,-500.0,0.00014999,2]
[424700188,1781063442000,-500.0,0.00014999,2]
[424700191,1781063442000,-500.0,0.00014999,2]
[424700199,1781063442000,-500.0,0.00014999,2]
[424700192,1781063442000,-500.0,0.00014999,2]
[424700197,1781063442000,-500.0,0.00014999,2]
[424700195,1781063442000,-500.0,0.00014999,2]
[424700200,1781063442000,-300.0,0.00014999,2]
[424700196,1781063442000,-500.0,0.00014999,2]
[424700193,1781063442000,-500.0,0.00014999,2]
[424700190,1781063442000,-500.0,0.00014999,2]
[424700194,1781063442000,-500.0,0.00014999,2]
[424700189,1781063442000,-500.0,0.00014999,2]
[424700176,1781063442000,-500.0,0.00014999,2]
[424700187,1781063442000,-500.0,0.00014999,2]
[424700185,1781063442000,-500.0,0.00014999,2]
[424700184,1781063442000,-500.0,0.00014999,2]
[424700181,1781063442000,-500.0,0.00014999,2]
[424700182,1781063442000,-500.0,0.00014999,2]
[424700183,1781063442000,-500.0,0.00014999,2]
[424700180,1781063442000,-500.0,0.00014999,2]
[424700178,1781063442000,-500.0,0.00014999,2]
[424700179,1781063442000,-500.0,0.00014999,2]
[424700177,1781063442000,-500.0,0.00014999,2]
[424700198,1781063442000,-500.0,0.00014999,2]
[424700186,1781063442000,-500.0,0.00014999,2]
[424700201,1781063442000,-300.0,0.00014999,2]
[424700202,1781063442000,-300.0,0.00014999,2]
[424700204,1781063442000,-666.0,0.00014999,2]
[424700228,1781063442000,-503.44057045,0.00015,2]
[424700203,1781063442000,-300.0,0.00014999,2]
[424700226,1781063442000,-1279.16679411,0.00015,2]
[424700225,1781063442000,-5487.4765585,0.00015,2]
[424700224,1781063442000,-777.2934415,0.00015,2]
[424700223,1781063442000,-4729316.64663031,0.00015,2]
[424700222,1781063442000,-1003.78155081,0.00015,2]
[424700218,1781063442000,-455.0,0.00015,2]
[424700217,1781063442000,-151.39009832,0.00015,2]
[424700216,1781063442000,-351.86586003,0.00015,2]
[424700219,1781063442000,-452.0,0.00015,2]
[424700221,1781063442000,-688.76,0.00015,2]
[424700229,1781063442000,-2648.17058701,0.00015,2]
[424700215,1781063442000,-428.95807706,0.00015,2]
[424700213,1781063442000,-300.0,0.00014999,2]
[424700214,1781063442000,-73531.23683242,0.00015,2]
[424700208,1781063442000,-300.0,0.00014999,2]
[424700209,1781063442000,-300.0,0.00014999,2]
[424700207,1781063442000,-300.0,0.00014999,2]
[424700210,1781063442000,-306.54912573,0.00014999,2]
[424700211,1781063442000,-666.0,0.00014999,2]
[424700212,1781063442000,-300.0,0.00014999,2]
[424700206,1781063442000,-666.0,0.00014999,2]
[424700205,1781063442000,-300.0,0.00014999,2]
[424700220,1781063442000,-457.0,0.00015,2]
[424700231,1781063443000,-1961.7860614,0.00015,2]
[424700233,1781063443000,-692.89856981,0.00015,2]
[424700234,1781063443000,-401.28118607,0.00015,2]
[424700232,1781063443000,-2885.18558241,0.00015,2]
[424700320,1781063458000,-500.0,0.00015,2]
[424700321,1781063458000,-500.0,0.00015,2]
[424700334,1781063458000,-500.0,0.00015,2]
[424700317,1781063458000,-500.0,0.00015,2]
[424700319,1781063458000,-500.0,0.00015,2]
[424700322,1781063458000,-500.0,0.00015,2]
[424700318,1781063458000,-500.0,0.00015,2]
[424700316,1781063458000,-500.0,0.00015,2]
[424700323,1781063458000,-500.0,0.00015,2]
[424700328,1781063458000,-500.0,0.00015,2]
[424700324,1781063458000,-500.0,0.00015,2]
[424700332,1781063458000,-500.0,0.00015,2]
[424700331,1781063458000,-151.0,0.00015,2]
[424700327,1781063458000,-500.0,0.00015,2]
[424700326,1781063458000,-500.0,0.00015,2]
[424700329,1781063458000,-500.0,0.00015,2]
[424700330,1781063458000,-500.0,0.00015,2]
[424700315,1781063458000,-500.0,0.00015,2]
[424700325,1781063458000,-500.0,0.00015,2]
[424700314,1781063458000,-500.0,0.00015,2]
[424700300,1781063458000,-750.0,0.00015,2]
[424700310,1781063458000,-500.0,0.00015,2]
[424700333,1781063458000,-500.0,0.00015,2]
[424700293,1781063458000,-15191121.27123913,0.00015,2]
[424700295,1781063458000,-180.82010105,0.00015,2]
[424700294,1781063458000,-4822365.75662975,0.00015,2]
[424700296,1781063458000,-30000.0,0.00015,2]
[424700298,1781063458000,-1000.0,0.00015,2]
[424700303,1781063458000,-180.82010104,0.00015,2]
[424700301,1781063458000,-450.0,0.00015,2]
[424700299,1781063458000,-800.01,0.00015,2]
[424700297,1781063458000,-69293.59865468,0.00015,3]
[424700302,1781063458000,-152.0,0.00015,2]
[424700304,1781063458000,-151.0,0.00015,2]
[424700305,1781063458000,-151.0,0.00015,2]
[424700306,1781063458000,-151.0,0.00015,2]
[424700307,1781063458000,-151.0,0.00015,2]
[424700311,1781063458000,-500.0,0.00015,2]
[424700312,1781063458000,-500.0,0.00015,2]
[424700309,1781063458000,-500.0,0.00015,2]
[424700308,1781063458000,-500.0,0.00015,2]
[424700313,1781063458000,-500.0,0.00015,2]
[424700340,1781063458000,-500.0,0.00015,2]
[424700363,1781063458000,-500.0,0.00015,2]
[424700336,1781063458000,-500.0,0.00015,2]
[424700358,1781063458000,-500.0,0.00015,2]
[424700362,1781063458000,-500.0,0.00015,2]
[424700361,1781063458000,-500.0,0.00015,2]
[424700366,1781063458000,-500.0,0.00015,2]
[424700367,1781063458000,-500.0,0.00015,2]
[424700365,1781063458000,-500.0,0.00015,2]
[424700369,1781063458000,-500.0,0.00015,2]
[424700368,1781063458000,-500.0,0.00015,2]
[424700370,1781063458000,-500.0,0.00015,2]
[424700371,1781063458000,-500.0,0.00015,2]
[424700373,1781063458000,-500.0,0.00015,2]
[424700374,1781063458000,-500.0,0.00015,2]
[424700378,1781063458000,-2000.0,0.00015,2]
[424700375,1781063458000,-500.0,0.00015,2]
[424700377,1781063458000,-2000.0,0.00015,2]
[424700379,1781063458000,-1548.49,0.00015,2]
[424700380,1781063458000,-2000.0,0.00015,2]
[424700376,1781063458000,-2000.0,0.00015,2]
[424700337,1781063458000,-151.0,0.00015,2]
[424700357,1781063458000,-500.0,0.00015,2]
[424700360,1781063458000,-500.0,0.00015,2]
[424700372,1781063458000,-500.0,0.00015,2]
[424700359,1781063458000,-500.0,0.00015,2]
[424700339,1781063458000,-500.0,0.00015,2]
[424700356,1781063458000,-500.0,0.00015,2]
[424700335,1781063458000,-500.0,0.00015,2]
[424700338,1781063458000,-500.0,0.00015,2]
[424700342,1781063458000,-500.0,0.00015,2]
[424700341,1781063458000,-500.0,0.00015,2]
[424700343,1781063458000,-151.0,0.00015,2]
[424700347,1781063458000,-500.0,0.00015,2]
[424700351,1781063458000,-500.0,0.00015,2]
[424700344,1781063458000,-500.0,0.00015,2]
[424700348,1781063458000,-500.0,0.00015,2]
[424700345,1781063458000,-500.0,0.00015,2]
[424700346,1781063458000,-500.0,0.00015,2]
[424700352,1781063458000,-500.0,0.00015,2]
[424700350,1781063458000,-500.0,0.00015,2]
[424700353,1781063458000,-500.0,0.00015,2]
[424700364,1781063458000,-500.0,0.00015,2]
[424700349,1781063458000,-500.0,0.00015,2]
[424700354,1781063458000,-500.0,0.00015,2]
[424700355,1781063458000,-500.0,0.00015,2]
[424700410,1781063459000,-2000.0,0.00015,2]
[424700414,1781063459000,-160.0,0.00015,2]
[424700413,1781063459000,-628.38,0.00015,2]
[424700412,1781063459000,-1047.3,0.00015,2]
[424700409,1781063459000,-226.142666,0.00015,2]
[424700419,1781063459000,-165.25602076,0.00015,2]
[424700417,1781063459000,-160.0,0.00015,2]
[424700418,1781063459000,-160.0,0.00015,2]
[424700416,1781063459000,-160.0,0.00015,2]
[424700411,1781063459000,-513.51,0.00015,2]
[424700420,1781063459000,-602.027517,0.00015,2]
[424700427,1781063459000,-602.027517,0.00015,2]
[424700424,1781063459000,-602.027517,0.00015,2]
[424700423,1781063459000,-602.027517,0.00015,2]
[424700425,1781063459000,-602.027517,0.00015,2]
[424700421,1781063459000,-602.027517,0.00015,2]
[424700429,1781063459000,-151.0,0.00015,2]
[424700428,1781063459000,-151.0,0.00015,2]
[424700426,1781063459000,-602.027517,0.00015,2]
[424700430,1781063459000,-151.0,0.00015,2]
[424700432,1781063459000,-151.0,0.00015,2]
[424700433,1781063459000,-151.0,0.00015,2]
[424700406,1781063459000,-151.0,0.00015,2]
[424700422,1781063459000,-602.027517,0.00015,2]
[424700405,1781063459000,-151.0,0.00015,2]
[424700386,1781063459000,-500.0,0.00015,2]
[424700402,1781063459000,-5259.416845,0.00015,2]
[424700434,1781063459000,-151.0,0.00015,2]
[424700384,1781063459000,-500.0,0.00015,2]
[424700381,1781063459000,-1145.2,0.00015,2]
[424700382,1781063459000,-1887.13,0.00015,2]
[424700383,1781063459000,-500.0,0.00015,2]
[424700385,1781063459000,-500.0,0.00015,2]
[424700388,1781063459000,-500.0,0.00015,2]
[424700387,1781063459000,-500.0,0.00015,2]
[424700389,1781063459000,-500.0,0.00015,2]
[424700390,1781063459000,-500.0,0.00015,2]
[424700391,1781063459000,-500.0,0.00015,2]
[424700408,1781063459000,-151.0,0.00015,2]
[424700396,1781063459000,-500.0,0.00015,2]
[424700397,1781063459000,-500.0,0.00015,2]
[424700393,1781063459000,-500.0,0.00015,2]
[424700394,1781063459000,-500.0,0.00015,2]
[424700395,1781063459000,-500.0,0.00015,2]
[424700398,1781063459000,-380.00408,0.00015,2]
[424700401,1781063459000,-5259.416845,0.00015,2]
[424700404,1781063459000,-151.0,0.00015,2]
[424700407,1781063459000,-151.0,0.00015,2]
[424700399,1781063459000,-5259.416845,0.00015,2]
[424700400,1781063459000,-5259.416845,0.00015,2]
[424700403,1781063459000,-151.0,0.00015,2]
[424700392,1781063459000,-500.0,0.00015,2]
[424700431,1781063459000,-151.0,0.00015,2]
[424700415,1781063459000,-160.0,0.00015,2]
[424700441,1781063459000,-556.403067,0.00015068,2]
[424700464,1781063459000,-433.0,0.00015506,2]
[424700467,1781063459000,-350.0,0.00015601,2]
[424700466,1781063459000,-853.94608,0.000156,2]
[424700468,1781063459000,-156.97,0.00015639,2]
[424700473,1781063459000,-300.0,0.00015755,2]
[424700469,1781063459000,-4923.09472156,0.000157,2]
[424700471,1781063459000,-350.0,0.00015749,2]
[424700472,1781063459000,-151.0,0.00015753,2]
[424700474,1781063459000,-300.0,0.00015755,2]
[424700470,1781063459000,-853.94608,0.000157,2]
[424700481,1781063459000,-152.0,0.00015833,2]
[424700465,1781063459000,-4923.09472156,0.000156,2]
[424700475,1781063459000,-300.0,0.00015755,2]
[424700477,1781063459000,-2276.06962025,0.00015807,2]
[424700476,1781063459000,-460.88782714,0.000158,5]
[424700480,1781063459000,-152.0,0.00015833,2]
[424700478,1781063459000,-350.0,0.00015816,2]
[424700485,1781063459000,-159.50863795,0.00015833,2]
[424700483,1781063459000,-151.0,0.00015833,2]
[424700482,1781063459000,-152.0,0.00015833,2]
[424700484,1781063459000,-151.0,0.00015833,2]
[424700486,1781063459000,-151.0,0.00015833,2]
[424700487,1781063459000,-151.0,0.00015833,2]